lending/lending_fUSD_20240410
["ID","MTS","AMOUNT","RATE_DAILY","PERIOD"]
[322094823,1712760647092,-500.0,0.00054794,120]
[322094826,1712760647104,-561.7,0.00054794,120]
[322094828,1712760647119,-500.0,0.00054794,120]
[322094830,1712760647130,-500.0,0.00054794,120]
[322094832,1712760647141,-500.0,0.00054794,120]
[322094834,1712760647151,-500.0,0.00054794,120]
[322094836,1712760647161,-500.0,0.00054794,120]
[322094838,1712760647171,-500.0,0.00054794,120]
[322094840,1712760647180,-500.0,0.00054794,120]
[322094843,1712760647190,-500.0,0.00054794,120]
[322094845,1712760647200,-500.0,0.00054794,21]
[322094847,1712760647213,-332.45252281,0.00054794,2]
[322094849,1712760647223,-500.0,0.00054794,120]
[322094851,1712760647234,-500.0,0.00054794,120]
[322094853,1712760647244,-500.0,0.00054794,120]
[322094855,1712760647255,-500.0,0.00054794,120]
[322094857,1712760647265,-150.0,0.00054795,120]
[322094860,1712760647277,-150.0,0.00054795,120]
[322094862,1712760647288,-150.0,0.00054795,120]
[322094864,1712760647298,-150.0,0.00054795,120]
[322094866,1712760647309,-150.0,0.00054795,120]
[322094868,1712760647319,-150.0,0.00054795,120]
[322094870,1712760647329,-500.0,0.00054795,120]
[322094872,1712760647340,-500.0,0.00054795,120]
[322094874,1712760647350,-500.0,0.00054795,120]
[322094876,1712760647360,-500.0,0.00054795,120]
[322094878,1712760647371,-500.0,0.00054795,120]
[322094880,1712760647382,-500.0,0.00054795,120]
[322094883,1712760647393,-500.0,0.00054795,120]
[322094885,1712760647403,-500.0,0.00054795,120]
[322094887,1712760647414,-500.0,0.00054795,120]
[322094889,1712760647425,-500.0,0.00054795,120]
[322094891,1712760647435,-500.0,0.00054795,120]
[322094893,1712760647447,-500.0,0.00054795,120]
[322094895,1712760647459,-500.0,0.00054795,120]
[322094898,1712760647470,-500.0,0.00054795,120]
[322094900,1712760647481,-500.0,0.00054795,120]
[322094902,1712760647492,-500.0,0.00054795,120]
[322094904,1712760647503,-500.0,0.00054795,120]
[322094906,1712760647515,-500.0,0.00054795,120]
[322094908,1712760647527,-500.0,0.00054795,120]
[322094911,1712760647539,-500.0,0.00054795,120]
[322094913,1712760647550,-500.0,0.00054795,120]
[322094915,1712760647560,-500.0,0.00054795,120]
[322094917,1712760647570,-500.0,0.00054795,120]
[322094919,1712760647581,-500.0,0.00054795,120]
[322094921,1712760647592,-500.0,0.00054795,120]
[322094923,1712760647603,-658.0,0.00054795,120]
[322094925,1712760647612,-500.0,0.00054795,120]
[322094927,1712760647623,-500.0,0.00054795,120]
[322094929,1712760647634,-500.0,0.00054795,120]
[322094931,1712760647645,-500.0,0.00054795,120]
[322094934,1712760647656,-500.0,0.00054795,120]
[322094936,1712760647667,-500.0,0.00054795,120]
[322094938,1712760647678,-500.0,0.00054795,120]
[322094940,1712760647689,-500.0,0.00054795,120]
[322094942,1712760647700,-500.0,0.00054795,120]
[322094944,1712760647711,-500.0,0.00054795,120]
[322094946,1712760647722,-500.0,0.00054795,120]
[322094949,1712760647734,-500.0,0.00054795,120]
[322094951,1712760647745,-500.0,0.00054795,120]
[322094953,1712760647757,-500.0,0.00054795,120]
[322094955,1712760647769,-500.0,0.00054795,120]
[322094957,1712760647780,-500.0,0.00054795,120]
[322094959,1712760647790,-500.0,0.00054795,120]
[322094962,1712760647801,-500.0,0.00054795,120]
[322094964,1712760647811,-500.0,0.00054795,120]
[322094966,1712760647821,-500.0,0.00054795,120]
[322094968,1712760647831,-500.0,0.00054795,120]
[322094970,1712760647846,-500.0,0.00054795,120]
[322094971,1712760647855,-500.0,0.00054795,120]
[322094972,1712760647866,-500.0,0.00054795,120]
[322094973,1712760647876,-500.0,0.00054795,120]
[322094974,1712760647886,-500.0,0.00054795,120]
[322094975,1712760647897,-500.0,0.00054795,120]
[322094976,1712760647907,-500.0,0.00054795,120]
[322094977,1712760647917,-500.0,0.00054795,120]
[322094978,1712760647929,-500.0,0.00054795,120]
[322094979,1712760647939,-500.0,0.00054795,120]
[322094980,1712760647949,-500.0,0.00054795,120]
[322094981,1712760647960,-500.0,0.00054795,120]
[322094982,1712760647970,-500.0,0.00054795,120]
[322094985,1712760647980,-500.0,0.00054795,120]
[322094987,1712760647990,-500.0,0.00054795,120]
[322094989,1712760648000,-500.0,0.00054795,120]
[322094991,1712760648010,-500.0,0.00054795,120]
[322094993,1712760648020,-500.0,0.00054795,120]
[322094995,1712760648030,-500.0,0.00054795,120]
[322094997,1712760648040,-500.0,0.00054795,120]
[322094999,1712760648050,-500.0,0.00054795,120]
[322095001,1712760648061,-500.0,0.00054795,120]
[322095003,1712760648071,-500.0,0.00054795,120]
[322095005,1712760648081,-500.0,0.00054795,120]
[322095007,1712760648092,-500.0,0.00054795,120]
[322095009,1712760648103,-500.0,0.00054795,120]
[322095011,1712760648114,-500.0,0.00054795,120]
[322095013,1712760648124,-500.0,0.00054795,120]
[322095015,1712760648135,-549.0,0.00054795,120]
[322095017,1712760648146,-500.0,0.00054795,120]
[322095020,1712760648157,-500.0,0.00054795,120]
[322095022,1712760648167,-500.0,0.00054795,120]
[322095024,1712760648177,-500.0,0.00054795,120]
[322095026,1712760648187,-500.0,0.00054795,120]
[322095028,1712760648199,-500.0,0.00054795,120]
[322095030,1712760648209,-500.0,0.00054795,120]
[322095031,1712760648220,-500.0,0.00054795,120]
[322095032,1712760648231,-500.0,0.00054795,120]
[322095033,1712760648241,-500.0,0.00054795,120]
[322095034,1712760648252,-500.0,0.00054795,120]
[322095035,1712760648262,-500.0,0.00054795,120]
[322095036,1712760648273,-500.0,0.00054795,120]
[322095037,1712760648283,-500.0,0.00054795,120]
[322095039,1712760648294,-500.0,0.00054795,120]
[322095041,1712760648304,-500.0,0.00054795,120]
[322095043,1712760648314,-500.0,0.00054795,120]
[322095045,1712760648325,-500.0,0.00054795,120]
[322095047,1712760648335,-500.0,0.00054795,120]
[322095049,1712760648346,-500.0,0.00054795,120]
[322095051,1712760648357,-500.0,0.00054795,120]
[322095055,1712760648378,-542.0,0.00054795,120]
[322095057,1712760648390,-155.0,0.000548,120]
[322095059,1712760648401,-150.0,0.000548,12]
[322095061,1712760648414,-2500.0,0.000548,120]
[322095063,1712760648425,-250.0,0.000548,120]
[322095066,1712760648437,-253.6,0.000548,120]
[322095068,1712760648448,-2500.0,0.00054852,20]
[322095070,1712760648459,-500.0,0.00054876,120]
[322095072,1712760648471,-500.0,0.00054876,120]
[322095074,1712760648482,-500.0,0.00054876,2]
[322095077,1712760648495,-500.0,0.00054876,120]
[322095079,1712760648506,-500.0,0.00054876,120]
[322095081,1712760648518,-290.69,0.00054876,120]
[322095083,1712760648529,-500.0,0.00054876,120]
[322095085,1712760648540,-542.73,0.00054876,120]
[322095088,1712760648551,-502.7,0.00054876,120]
[322095090,1712760648561,-436.64,0.00054876,120]
[322095092,1712760648571,-381.93,0.00054876,120]
[322095094,1712760648581,-500.0,0.00054876,120]
[322095096,1712760648591,-492.44,0.00054876,120]
[322095098,1712760648604,-500.0,0.00054876,120]
[322095100,1712760648615,-2058.33,0.00054876,120]
[322095102,1712760648625,-188.68,0.00054876,120]
[322095104,1712760648635,-500.0,0.00054876,120]
[322095106,1712760648645,-500.0,0.00054876,120]
[322095108,1712760648656,-500.0,0.00054876,120]
[322095111,1712760648667,-500.0,0.00054876,120]
[322095113,1712760648677,-334.61,0.00054876,120]
[322095115,1712760648687,-154.13,0.00054876,120]
[322095117,1712760648698,-1193.71,0.00054876,120]
[322095119,1712760648708,-500.0,0.00054876,120]
[322095121,1712760648718,-343.65,0.00054876,120]
[322095123,1712760648728,-500.0,0.00054876,120]
[322095125,1712760648738,-374.84,0.00054876,120]
[322095127,1712760648749,-500.0,0.00054876,120]
[322095129,1712760648760,-244.61,0.00054876,120]
[322095131,1712760648771,-500.0,0.00054876,120]
[322095133,1712760648781,-833.33,0.00054876,120]
[322095135,1712760648792,-347.18,0.00054876,120]
[322095138,1712760648803,-514.23,0.00054876,120]
[322095140,1712760648813,-500.0,0.00054876,120]
[322095142,1712760648823,-529.98331565,0.00054876,120]
[322095165,1712760648834,-758.87,0.00054876,120]
[322095168,1712760649067,-500.0,0.00054876,120]
[322095170,1712760649081,-500.0,0.00054876,120]
[322095172,1712760649091,-686.56,0.00054876,120]
[322095174,1712760649104,-248.0,0.00054876,120]
[322095176,1712760649114,-872.88,0.00054876,120]
[322095178,1712760649125,-500.0,0.00054876,120]
[322095180,1712760649135,-500.0,0.00054876,120]
[322095182,1712760649145,-919.74,0.00054876,120]
[322095184,1712760649156,-500.0,0.00054876,120]
[322095187,1712760649167,-500.0,0.00054876,120]
[322095189,1712760649177,-500.0,0.00054876,120]
[322095191,1712760649186,-500.0,0.00054876,120]
[322095192,1712760649196,-500.0,0.00054876,120]
[322095195,1712760649206,-500.0,0.00054876,120]
[322095197,1712760649217,-500.0,0.00054876,120]
[322095199,1712760649228,-500.0,0.00054876,120]
[322095201,1712760649237,-572.98749418,0.00054876,120]
[322095203,1712760649247,-500.0,0.00054876,120]
[322095205,1712760649257,-500.0,0.00054876,120]
[322095207,1712760649267,-505.04,0.00054876,120]
[322095209,1712760649278,-635.58,0.00054876,21]
[322095211,1712760649288,-500.0,0.00054876,120]
[322095213,1712760649297,-500.0,0.00054876,120]
[322095215,1712760649307,-184.14,0.00054876,120]
[322095217,1712760649317,-1008.5,0.0005489,60]
[322095219,1712760649326,-2500.0,0.00054929,20]
[322095221,1712760649335,-2500.0,0.00054955,20]
[322095223,1712760649347,-500.0,0.00054958,120]
[322095225,1712760649359,-500.0,0.00054958,120]
[322095227,1712760649369,-613.65,0.00054958,120]
[322095229,1712760649379,-197.67649341,0.00054958,120]
[322095231,1712760649389,-500.0,0.00054958,120]
[322095233,1712760649398,-179.55,0.00054958,120]
[322095235,1712760649408,-511.87,0.00054958,120]
[322095237,1712760649418,-2058.33,0.00054958,120]
[322095239,1712760649428,-500.0,0.00054958,120]
[322095241,1712760649437,-440.73568198,0.00054958,120]
[322095243,1712760649447,-500.0,0.00054958,120]
[322095245,1712760649456,-500.0,0.00054958,120]
[322095247,1712760649466,-1193.71,0.00054958,120]
[322095249,1712760649475,-500.0,0.00054958,120]
[322095251,1712760649485,-500.0,0.00054958,120]
[322095253,1712760649494,-311.75,0.00054958,120]
[322095255,1712760649504,-500.0,0.00054958,120]
[322095257,1712760649513,-833.33,0.00054958,120]
[322095259,1712760649523,-514.23,0.00054958,120]
[322095261,1712760649532,-251.75,0.00054958,120]
[322095263,1712760649541,-758.87,0.00054958,120]
[322095265,1712760649551,-500.0,0.00054958,120]
[322095267,1712760649560,-500.0,0.00054958,120]
[322095269,1712760649569,-686.56,0.00054958,120]
[322095271,1712760649578,-872.88,0.00054958,120]
[322095273,1712760649587,-500.0,0.00054958,120]
[322095275,1712760649596,-538.43,0.00054958,120]
[322095277,1712760649605,-919.74,0.00054958,120]
[322095279,1712760649615,-500.0,0.00054958,120]
[322095281,1712760649623,-500.0,0.00054958,120]
[322095283,1712760649632,-500.0,0.00054958,120]
[322095285,1712760649641,-500.0,0.00054958,120]
[322095287,1712760649651,-500.0,0.00054958,120]
[322095289,1712760649660,-500.0,0.00054958,120]
[322095291,1712760649669,-500.0,0.00054958,120]
[322095293,1712760649678,-152.12,0.00054958,120]
[322095295,1712760649687,-500.0,0.00054958,120]
[322095296,1712760649697,-150.0,0.00054992,120]
[322095297,1712760649706,-450.68550755,0.00054999,14]
[322095298,1712760649715,-100000.0,0.00055,55]
[322095299,1712760649725,-13552.81632359,0.00055,120]
[322095300,1712760649734,-150.0,0.00055,5]
[322095301,1712760649743,-60233.023144,0.00055,14]
[322095302,1712760649752,-6001.26176302,0.00055,120]
[322095303,1712760649762,-150.0,0.00055,104]
[322095304,1712760649771,-450.68550755,0.00055005,120]
[322095305,1712760649781,-450.68550755,0.00055011,120]
[322095306,1712760649790,-450.68550755,0.00055016,120]
[322095307,1712760649800,-450.68550755,0.00055022,120]
[322095308,1712760649809,-200.0,0.00055026,120]
[322095309,1712760649819,-450.68550755,0.00055028,120]
[322095310,1712760649829,-450.68550755,0.00055034,120]
[322095311,1712760649843,-450.68550755,0.00055039,120]
[322095312,1712760649854,-500.0,0.00055041,120]
[322095313,1712760649863,-500.0,0.00055041,120]
[322095314,1712760649873,-500.0,0.00055041,120]
[322095315,1712760649884,-2058.33,0.00055041,120]
[322095316,1712760649894,-208.33,0.00055041,120]
[322095317,1712760649904,-500.0,0.00055041,120]
[322095318,1712760649914,-153.2,0.00055041,120]
[322095319,1712760649925,-1193.71,0.00055041,120]
[322095320,1712760649935,-500.0,0.00055041,120]
[322095321,1712760649945,-419.69,0.00055041,120]
[322095322,1712760649955,-274.76,0.00055041,120]
[322095323,1712760649965,-833.33,0.00055041,120]
[322095324,1712760649975,-514.23,0.00055041,120]
[322095325,1712760649985,-758.87,0.00055041,120]
[322095326,1712760649995,-500.0,0.00055041,120]
[322095327,1712760650006,-500.0,0.00055041,120]
[322095328,1712760650016,-686.56,0.00055041,120]
[322095329,1712760650027,-872.88,0.00055041,120]
[322095330,1712760650039,-919.74,0.00055041,120]
[322095331,1712760650048,-500.0,0.00055041,120]
[322095332,1712760650059,-272.23,0.00055041,120]
[322095333,1712760650070,-266.00459411,0.00055041,120]
[322095334,1712760650080,-500.0,0.00055041,120]
[322095335,1712760650090,-500.0,0.00055041,120]
[322095336,1712760650104,-500.0,0.00055041,120]
[322095337,1712760650115,-500.0,0.00055041,120]
[322095338,1712760650125,-450.68550755,0.00055045,120]
[322095339,1712760650135,-450.68550755,0.00055051,120]
[322095340,1712760650145,-450.68550755,0.00055057,120]
[322095341,1712760650155,-450.68550755,0.00055062,120]
[322095342,1712760650165,-450.68550755,0.00055068,120]
[322095343,1712760650175,-2374.91,0.00055068,120]
[322095344,1712760650186,-1674.25,0.00055068,120]
[322095345,1712760650196,-450.68550755,0.00055074,120]
[322095346,1712760650206,-450.68550755,0.0005508,120]
[322095347,1712760650216,-450.68550755,0.00055085,120]
[322095348,1712760650226,-500.0,0.00055123,120]
[322095349,1712760650237,-500.0,0.00055123,120]
[322095350,1712760650247,-609.09588565,0.00055123,120]
[322095351,1712760650257,-2058.33,0.00055123,120]
[322095352,1712760650268,-500.0,0.00055123,120]
[322095353,1712760650278,-1193.71,0.00055123,120]
[322095354,1712760650288,-500.0,0.00055123,120]
[322095355,1712760650298,-833.33,0.00055123,120]
[322095356,1712760650308,-514.23,0.00055123,120]
[322095357,1712760650318,-758.87,0.00055123,120]
[322095358,1712760650330,-500.0,0.00055123,120]
[322095359,1712760650340,-500.0,0.00055123,120]
[322095360,1712760650356,-686.56,0.00055123,120]
[322095361,1712760650367,-872.88,0.00055123,120]
[322095362,1712760650377,-919.74,0.00055123,120]
[322095363,1712760650387,-500.0,0.00055123,120]
[322095364,1712760650397,-500.0,0.00055123,120]
[322095365,1712760650407,-500.0,0.00055123,120]
[322095366,1712760650417,-500.0,0.00055123,120]
[322095367,1712760650427,-500.0,0.00055123,120]
[322095368,1712760650436,-150.0,0.0005519,120]
[322095369,1712760650446,-167.0,0.000552,30]
[322095370,1712760650456,-500.0,0.00055205,120]
[322095371,1712760650465,-500.0,0.00055205,120]
[322095372,1712760650475,-2058.33,0.00055205,120]
[322095373,1712760650486,-330.6,0.00055205,120]
[322095374,1712760650495,-1193.71,0.00055205,120]
[322095375,1712760650506,-500.0,0.00055205,120]
[322095376,1712760650515,-833.33,0.00055205,120]
[322095377,1712760650525,-514.23,0.00055205,120]
[322095378,1712760650535,-758.87,0.00055205,120]
[322095379,1712760650545,-500.0,0.00055205,120]
[322095380,1712760650555,-500.0,0.00055205,120]
[322095381,1712760650565,-686.56,0.00055205,120]
[322095382,1712760650575,-872.88,0.00055205,120]
[322095383,1712760650584,-919.74,0.00055205,120]
[322095384,1712760650594,-500.0,0.00055205,120]
[322095385,1712760650608,-186.71,0.00055205,120]
[322095386,1712760650617,-500.0,0.00055205,120]
[322095387,1712760650626,-500.0,0.00055205,120]
[322095388,1712760650636,-500.0,0.00055205,120]
[322095389,1712760650645,-150.0,0.00055264,120]
[322095390,1712760650654,-500.0,0.00055287,120]
[322095391,1712760650664,-2058.33,0.00055287,120]
[322095392,1712760650673,-1193.71,0.00055287,120]
[322095393,1712760650683,-500.0,0.00055287,120]
[322095394,1712760650692,-833.33,0.00055287,120]
[322095395,1712760650702,-514.23,0.00055287,120]
[322095396,1712760650711,-758.87,0.00055287,120]
[322095397,1712760650721,-500.0,0.00055287,120]
[322095398,1712760650730,-500.0,0.00055287,120]
[322095399,1712760650739,-686.56,0.00055287,120]
[322095400,1712760650749,-872.88,0.00055287,120]
[322095401,1712760650759,-919.74,0.00055287,120]
[322095402,1712760650768,-500.0,0.00055287,120]
[322095403,1712760650778,-500.0,0.00055287,120]
[322095404,1712760650787,-500.0,0.00055287,120]
[322095405,1712760650796,-500.0,0.00055287,120]
[322095406,1712760650805,-150.08,0.000553,34]
[322095407,1712760650814,-150.0,0.000553,120]
[322095408,1712760650823,-150.0,0.000553,12]
[322095409,1712760650833,-150.0,0.00055331,120]
[322095410,1712760650843,-500.0,0.00055369,120]
[322095411,1712760650856,-2058.33,0.00055369,120]
[322095412,1712760650866,-1193.71,0.00055369,120]
[322095413,1712760650875,-500.0,0.00055369,120]
[322095414,1712760650885,-833.33,0.00055369,120]
[322095415,1712760650894,-514.23,0.00055369,120]
[322095416,1712760650904,-758.87,0.00055369,120]
[322095417,1712760650913,-500.0,0.00055369,120]
[322095418,1712760650923,-154.54,0.00055369,120]
[322095419,1712760650933,-686.56,0.00055369,120]
[322095420,1712760650944,-872.88,0.00055369,120]
[322095421,1712760650953,-919.74,0.00055369,120]
[322095422,1712760650963,-500.0,0.00055369,120]
[322095423,1712760650972,-500.0,0.00055369,120]
[322095424,1712760650982,-500.0,0.00055369,120]
[322095425,1712760650991,-500.0,0.00055369,120]
[322095426,1712760651001,-150.0,0.00055387,120]
[322095427,1712760651010,-500.0,0.00055452,120]
[322095428,1712760651019,-2058.33,0.00055452,120]
[322095429,1712760651029,-1193.71,0.00055452,120]
[322095430,1712760651038,-500.0,0.00055452,120]
[322095431,1712760651047,-833.33,0.00055452,120]
[322095432,1712760651057,-514.23,0.00055452,120]
[322095433,1712760651066,-758.87,0.00055452,120]
[322095434,1712760651076,-500.0,0.00055452,120]
[322095435,1712760651086,-686.56,0.00055452,120]
[322095436,1712760651098,-872.88,0.00055452,120]
[322095437,1712760651108,-919.74,0.00055452,120]
[322095438,1712760651118,-500.0,0.00055452,120]
[322095439,1712760651128,-500.0,0.00055452,120]
[322095440,1712760651138,-500.0,0.00055452,120]
[322095441,1712760651148,-321.31,0.00055452,120]
[322095442,1712760651158,-150.0,0.000555,105]
[322095443,1712760651168,-500.0,0.00055534,120]
[322095444,1712760651178,-2058.33,0.00055534,120]
[322095445,1712760651188,-1193.71,0.00055534,120]
[322095446,1712760651198,-500.0,0.00055534,120]
[322095447,1712760651208,-833.33,0.00055534,120]
[322095448,1712760651218,-514.23,0.00055534,120]
[322095449,1712760651227,-758.87,0.00055534,120]
[322095450,1712760651238,-500.0,0.00055534,120]
[322095451,1712760651248,-686.56,0.00055534,120]
[322095452,1712760651258,-872.88,0.00055534,120]
[322095453,1712760651268,-919.74,0.00055534,120]
[322095454,1712760651278,-500.0,0.00055534,120]
[322095455,1712760651288,-500.0,0.00055534,120]
[322095456,1712760651300,-500.0,0.00055534,120]
[322095457,1712760651323,-150.0,0.00055585,120]
[322095458,1712760651334,-500.0,0.00055616,120]
[322095459,1712760651343,-2058.33,0.00055616,120]
[322095460,1712760651354,-1193.71,0.00055616,120]
[322095461,1712760651364,-500.0,0.00055616,120]
[322095462,1712760651373,-833.33,0.00055616,120]
[322095463,1712760651383,-514.23,0.00055616,120]
[322095464,1712760651393,-758.87,0.00055616,120]
[322095465,1712760651404,-500.0,0.00055616,120]
[322095466,1712760651414,-686.56,0.00055616,120]
[322095467,1712760651425,-872.88,0.00055616,120]
[322095468,1712760651436,-919.74,0.00055616,120]
[322095469,1712760651447,-500.0,0.00055616,120]
[322095470,1712760651457,-496.5,0.00055616,120]
[322095471,1712760651467,-500.0,0.00055616,120]
[322095472,1712760651477,-160.8,0.00055665,2]
[322095473,1712760651487,-500.0,0.00055698,120]
[322095474,1712760651497,-2058.33,0.00055698,120]
[322095475,1712760651507,-1193.71,0.00055698,120]
[322095476,1712760651517,-500.0,0.00055698,120]
[322095477,1712760651527,-833.33,0.00055698,120]
[322095478,1712760651538,-514.23,0.00055698,120]
[322095479,1712760651548,-758.87,0.00055698,120]
[322095480,1712760651560,-686.56,0.00055698,120]
[322095481,1712760651571,-500.0,0.00055698,120]
[322095482,1712760651582,-872.88,0.00055698,120]
[322095483,1712760651592,-919.74,0.00055698,120]
[322095484,1712760651604,-500.0,0.00055698,120]
[322095485,1712760651613,-500.0,0.00055698,120]
[322095486,1712760651623,-150.0,0.00055733,120]
[322095487,1712760651634,-500.0,0.0005578,120]
[322095488,1712760651644,-2058.33,0.0005578,120]
[322095489,1712760651654,-1193.71,0.0005578,120]
[322095490,1712760651664,-500.0,0.0005578,120]
[322095491,1712760651675,-833.33,0.0005578,120]
[322095492,1712760651685,-514.23,0.0005578,120]
[322095493,1712760651694,-758.87,0.0005578,120]
[322095494,1712760651704,-686.56,0.0005578,120]
[322095495,1712760651713,-500.0,0.0005578,120]
[322095496,1712760651723,-872.88,0.0005578,120]
[322095497,1712760651733,-919.74,0.0005578,120]
[322095498,1712760651743,-500.0,0.0005578,120]
[322095499,1712760651753,-500.0,0.0005578,120]
[322095500,1712760651763,-150.0,0.00055783,120]
[322095501,1712760651773,-500.0,0.00055863,120]
[322095502,1712760651783,-2058.33,0.00055863,120]
[322095503,1712760651793,-1193.71,0.00055863,120]
[322095504,1712760651803,-500.0,0.00055863,120]
[322095505,1712760651814,-833.33,0.00055863,120]
[322095506,1712760651824,-514.23,0.00055863,120]
[322095507,1712760651835,-758.87,0.00055863,120]
[322095508,1712760651849,-686.56,0.00055863,120]
[322095509,1712760651859,-500.0,0.00055863,120]
[322095510,1712760651869,-872.88,0.00055863,120]
[322095511,1712760651880,-919.74,0.00055863,120]
[322095512,1712760651890,-500.0,0.00055863,120]
[322095513,1712760651900,-166.64,0.00055863,120]
[322095514,1712760651909,-150.0,0.00055867,120]
[322095515,1712760651918,-500.0,0.00055945,120]
[322095516,1712760651930,-2058.33,0.00055945,120]
[322095517,1712760651940,-1193.71,0.00055945,120]
[322095518,1712760651950,-500.0,0.00055945,120]
[322095519,1712760651960,-833.33,0.00055945,120]
[322095520,1712760651969,-514.23,0.00055945,120]
[322095521,1712760651979,-758.87,0.00055945,120]
[322095522,1712760651988,-686.56,0.00055945,120]
[322095523,1712760651998,-248.31,0.00055945,120]
[322095524,1712760652008,-872.88,0.00055945,120]
[322095525,1712760652019,-919.74,0.00055945,120]
[322095526,1712760652029,-500.0,0.00055945,120]
[322095527,1712760652038,-150.0,0.0005598,120]
[322095528,1712760652047,-100000.0,0.00056,56]
[322095529,1712760652057,-150.0,0.00056,106]
[322095530,1712760652066,-250.0,0.00056,120]
[322095531,1712760652077,-500.0,0.00056027,120]
[322095532,1712760652086,-2058.33,0.00056027,120]
[322095533,1712760652096,-1193.71,0.00056027,120]
[322095534,1712760652106,-500.0,0.00056027,120]
[322095535,1712760652116,-833.33,0.00056027,120]
[322095536,1712760652126,-514.23,0.00056027,120]
[322095537,1712760652138,-758.87,0.00056027,120]
[322095538,1712760652149,-686.56,0.00056027,120]
[322095539,1712760652159,-872.88,0.00056027,120]
[322095540,1712760652169,-919.74,0.00056027,120]
[322095541,1712760652179,-500.0,0.00056027,120]
[322095542,1712760652189,-5484.7,0.00056086,117]
[322095543,1712760652199,-500.0,0.00056109,120]
[322095544,1712760652209,-2058.33,0.00056109,120]
[322095545,1712760652220,-1193.71,0.00056109,120]
[322095546,1712760652230,-500.0,0.00056109,120]
[322095547,1712760652240,-833.33,0.00056109,120]
[322095548,1712760652249,-514.23,0.00056109,120]
[322095549,1712760652260,-758.87,0.00056109,120]
[322095550,1712760652269,-686.56,0.00056109,120]
[322095551,1712760652279,-872.88,0.00056109,120]
[322095552,1712760652288,-919.74,0.00056109,120]
[322095553,1712760652298,-191.13,0.00056109,120]
[322095554,1712760652308,-500.0,0.00056164,120]
[322095555,1712760652317,-150.0,0.00056178,120]
[322095556,1712760652326,-555.58483251,0.00056191,120]
[322095557,1712760652336,-2058.33,0.00056191,120]
[322095558,1712760652347,-1193.71,0.00056191,120]
[322095559,1712760652357,-500.0,0.00056191,120]
[322095560,1712760652495,-833.33,0.00056191,120]
[322095561,1712760652506,-514.23,0.00056191,120]
[322095562,1712760652516,-758.87,0.00056191,120]
[322095563,1712760652527,-686.56,0.00056191,120]
[322095564,1712760652537,-872.88,0.00056191,120]
[322095565,1712760652546,-919.74,0.00056191,120]
[322095566,1712760652556,-150.0,0.00056202,120]
[322095567,1712760652566,-1000.0,0.00056206,120]
[322095568,1712760652575,-314.9,0.00056236,2]
[322095569,1712760652586,-169.89,0.00056236,2]